fUSD/lending_fUSD_20250402
["ID","MTS","AMOUNT","RATE_DAILY","PERIOD"]
[357018238,1743580029205,-150.0,0.00027945,2]
[357018239,1743580029227,-150.0,0.00029939,2]
[357018240,1743580029249,-150.0,0.00038596,2]
[357018241,1743580029271,-300.0,0.00045219,2]
[357018242,1743580029292,-200.0,0.00049313,60]
[357018243,1743580029319,-500.0,0.00049314,120]
[357018244,1743580029343,-500.0,0.00049314,120]
[357018245,1743580029367,-283.06683706,0.00049314,120]
[357018246,1743580029391,-717.9554054,0.00049315,120]
[357018247,1743580029411,-523.95002946,0.00049315,120]
[357018248,1743580029434,-500.0,0.00049315,120]
[357018249,1743580029456,-500.0,0.00049315,120]
[357018250,1743580029480,-524.24337423,0.00049315,120]
[357018251,1743580029502,-514.32923088,0.00049315,120]
[357018252,1743580029523,-515.46601173,0.00049315,120]
[357018253,1743580029544,-534.3602699,0.00049315,120]
[357018254,1743580029566,-500.0,0.00049315,120]
[357018255,1743580029586,-517.29423847,0.00049315,120]
[357018256,1743580029608,-159.06131489,0.00049315,120]
[357018257,1743580029628,-500.0,0.00049315,120]
[357018258,1743580029648,-517.73596074,0.00049315,120]
[357018259,1743580029669,-500.0,0.00049315,120]
[357018260,1743580029690,-500.0,0.00049315,120]
[357018261,1743580029711,-528.95742661,0.00049315,120]
[357018262,1743580029731,-514.80360342,0.00049315,120]
[357018263,1743580029752,-500.0,0.00049315,120]
[357018264,1743580029773,-500.0,0.00049315,120]
[357018265,1743580029793,-522.36932719,0.00049315,120]
[357018266,1743580029815,-500.0,0.00049315,120]
[357018267,1743580029839,-536.92485992,0.00049315,120]
[357018268,1743580029866,-523.95446343,0.00049315,120]
[357018269,1743580029888,-500.0,0.00049315,120]
[357018270,1743580029911,-500.0,0.00049315,120]
[357018271,1743580029932,-540.79905808,0.00049315,120]
[357018272,1743580029953,-507.23045161,0.00049315,120]
[357018273,1743580029974,-515.87849983,0.00049315,120]
[357018274,1743580029996,-500.0,0.00049315,120]
[357018275,1743580030016,-517.34876786,0.00049315,120]
[357018276,1743580030037,-587.7318073,0.00049315,120]
[357018277,1743580030058,-500.0,0.00049315,120]
[357018278,1743580030079,-500.0,0.00049315,120]
[357018279,1743580030101,-298.01792298,0.00049315,120]
[357018280,1743580030123,-514.44099147,0.00049315,120]
[357018281,1743580030146,-511.36816608,0.00049315,120]
[357018282,1743580030168,-532.64010399,0.00049315,120]
[357018283,1743580030191,-500.0,0.00049315,120]
[357018284,1743580030211,-161.41205312,0.00049315,120]
[357018285,1743580034090,-338.58794688,0.00049315,120]
[357018286,1743580034111,-500.0,0.00049315,120]
[357018287,1743580034132,-500.0,0.00049315,120]
[357018288,1743580034152,-521.94123578,0.00049315,120]
[357018289,1743580034172,-500.0,0.00049315,120]
[357018290,1743580034193,-500.0,0.00049315,120]
[357018291,1743580034214,-500.0,0.00049315,120]
[357018292,1743580034234,-223.84338296,0.00049315,120]
[357018293,1743580034254,-396.7361663,0.00049315,120]
[357018294,1743580034274,-500.0,0.00049315,120]
[357018295,1743580034294,-512.05289784,0.00049315,120]
[357018296,1743580034316,-500.0,0.00049315,120]
[357018297,1743580034337,-500.0,0.00049315,120]
[357018298,1743580034357,-1024.06394681,0.00049315,120]
[357018299,1743580034377,-500.0,0.00049315,120]
[357018300,1743580034398,-514.18583774,0.00049315,120]
[357018301,1743580034419,-500.0,0.00049315,120]
[357018302,1743580034441,-507.62457537,0.00049315,120]
[357018303,1743580034463,-519.68514276,0.00049315,120]
[357018304,1743580034484,-807.16,0.00049315,120]
[357018305,1743580034506,-500.0,0.00049315,120]
[357018306,1743580034527,-500.0,0.00049315,120]
[357018307,1743580034547,-528.94669321,0.00049315,120]
[357018308,1743580034567,-500.0,0.00049315,120]
[357018309,1743580034587,-529.56851602,0.00049315,120]
[357018310,1743580034607,-500.0,0.00049315,120]
[357018311,1743580034626,-522.68101669,0.00049315,120]
[357018312,1743580034646,-500.0,0.00049315,120]
[357018313,1743580034666,-500.0,0.00049315,120]
[357018314,1743580034685,-500.0,0.00049315,120]
[357018315,1743580034705,-1041.66,0.00049315,120]
[357018316,1743580034725,-538.31866709,0.00049315,120]
[357018317,1743580034745,-500.0,0.00049315,120]
[357018318,1743580034766,-500.0,0.00049315,120]
[357018319,1743580034785,-526.18281206,0.00049315,120]
[357018320,1743580034807,-498.92515,0.00049315,120]
[357018321,1743580034831,-509.44414639,0.00049315,120]
[357018322,1743580034852,-506.47675544,0.00049315,120]
[357018323,1743580034873,-500.0,0.00049315,120]
[357018324,1743580034894,-500.0,0.00049315,120]
[357018325,1743580034914,-500.0,0.00049315,120]
[357018326,1743580034933,-500.0,0.00049315,120]
[357018327,1743580034954,-500.0,0.00049315,120]
[357018328,1743580034975,-500.0,0.00049315,120]
[357018329,1743580034996,-500.0,0.00049315,120]
[357018330,1743580035017,-500.0,0.00049315,120]
[357018331,1743580035037,-502.13894562,0.00049315,120]
[357018332,1743580035060,-500.0,0.00049315,120]
[357018333,1743580035081,-500.0,0.00049315,120]
[357018334,1743580035101,-500.0,0.00049315,120]
[357018335,1743580035121,-1000.0,0.00049315,120]
[357018336,1743580035141,-500.0,0.00049315,120]
[357018337,1743580035161,-500.0,0.00049315,120]
[357018338,1743580035182,-500.0,0.00049315,120]
[357018339,1743580035204,-502.04175131,0.00049315,120]
[357018340,1743580035226,-530.69156695,0.00049315,120]
[357018341,1743580035247,-500.0,0.00049315,120]
[357018342,1743580035267,-500.0,0.00049315,120]
[357018343,1743580035287,-500.0,0.00049315,120]
[357018344,1743580035309,-235.42705769,0.00049315,120]
[357018345,1743580035329,-500.0,0.00049315,120]
[357018346,1743580035351,-500.0,0.00049315,120]
[357018347,1743580035372,-500.0,0.00049315,120]
[357018348,1743580035393,-500.0,0.00049315,120]
[357018349,1743580035412,-1000.41,0.00049315,30]
[357018350,1743580035433,-500.0,0.00049315,120]
[357018351,1743580035454,-500.0,0.00049315,120]
[357018352,1743580035476,-500.0,0.00049315,120]
[357018353,1743580035496,-500.0,0.00049315,120]
[357018354,1743580035517,-1077.97,0.00049315,120]
[357018355,1743580035538,-500.0,0.00049315,120]
[357018356,1743580035562,-500.0,0.00049315,120]
[357018357,1743580035583,-1799.71,0.00049315,120]
[357018358,1743580035605,-217.26519335,0.00049315,120]
[357018359,1743580035627,-500.0,0.00049315,120]
[357018360,1743580035649,-427.22388141,0.00049315,2]
[357018361,1743580039137,-72.77611859,0.00049315,2]
[357018362,1743580039160,-500.0,0.00049315,120]
[357018363,1743580039183,-500.0,0.00049315,120]
[357018364,1743580039205,-500.0,0.00049315,120]
[357018365,1743580039227,-500.0,0.00049315,120]
[357018366,1743580039249,-500.0,0.00049315,120]
[357018367,1743580039272,-500.0,0.00049315,120]
[357018368,1743580039294,-500.0,0.00049315,120]
[357018369,1743580039318,-171.70122134,0.00049315,120]
[357018370,1743580039340,-512.9704233,0.00049315,120]
[357018371,1743580039361,-515.65793726,0.00049315,60]
[357018372,1743580039383,-500.0,0.00049315,120]
[357018373,1743580039405,-500.0,0.00049315,120]
[357018374,1743580039427,-500.0,0.00049315,120]
[357018375,1743580039448,-500.0,0.00049315,120]
[357018376,1743580039470,-500.0,0.00049315,120]
[357018377,1743580039491,-500.0,0.00049315,120]
[357018378,1743580039512,-500.0,0.00049315,120]
[357018379,1743580039533,-500.0,0.00049315,120]
[357018380,1743580039556,-611.6920946,0.00049315,120]
[357018381,1743580039578,-500.0,0.00049315,120]
[357018382,1743580039603,-500.0,0.00049315,120]
[357018383,1743580039625,-500.0,0.00049315,120]
[357018384,1743580039652,-377.95243725,0.00049315,120]
[357018385,1743580039673,-500.0,0.00049315,120]
[357018386,1743580039693,-198.70316953,0.00049315,120]
[357018387,1743580039713,-500.0,0.00049315,120]
[357018388,1743580039734,-500.0,0.00049315,120]
[357018389,1743580039755,-500.0,0.00049315,120]
[357018390,1743580039775,-532.0998696,0.00049315,120]
[357018391,1743580039796,-500.0,0.00049315,120]
[357018392,1743580039823,-500.0,0.00049315,120]
[357018393,1743580039843,-500.0,0.00049315,120]
[357018394,1743580039864,-500.0,0.00049315,120]
[357018395,1743580039886,-500.0,0.00049315,120]
[357018396,1743580039914,-523.95510318,0.00049315,120]
[357018397,1743580039937,-500.0,0.00049315,120]
[357018398,1743580039960,-500.0,0.00049315,120]
[357018399,1743580039983,-500.0,0.00049315,120]
[357018400,1743580040005,-504.99223168,0.00049315,120]
[357018401,1743580040026,-500.0,0.00049315,120]
[357018402,1743580040048,-500.0,0.00049315,120]
[357018403,1743580040074,-529.30222492,0.00049315,120]
[357018404,1743580040096,-233.28618752,0.00049315,120]
[357018405,1743580040118,-610.9,0.00049315,120]
[357018406,1743580040139,-500.0,0.00049315,120]
[357018407,1743580040160,-404.48034243,0.00049315,120]
[357018408,1743580040181,-500.0,0.00049315,120]
[357018409,1743580040313,-500.0,0.00049315,120]
[357018410,1743580040336,-504.17042769,0.00049315,120]
[357018411,1743580040357,-500.0,0.00049315,120]
[357018412,1743580040379,-500.0,0.00049315,120]
[357018413,1743580040400,-500.0,0.00049315,120]
[357018414,1743580040421,-500.0,0.00049315,120]
[357018415,1743580040443,-179.56782594,0.00049315,120]
[357018416,1743580040464,-500.0,0.00049315,120]
[357018417,1743580040486,-561.81121677,0.00049315,120]
[357018418,1743580040508,-565.1284842,0.00049315,120]
[357018419,1743580040530,-568.34634829,0.00049315,120]
[357018420,1743580040553,-500.0,0.00049315,120]
[357018421,1743580040575,-500.0,0.00049315,120]
[357018422,1743580040597,-607.88054903,0.00049315,120]
[357018423,1743580040619,-579.09984208,0.00049315,120]
[357018424,1743580040643,-500.0,0.00049315,120]
[357018425,1743580040667,-569.4538989,0.00049315,120]
[357018426,1743580040690,-394.78774279,0.00049315,120]
[357018427,1743580040713,-500.0,0.00049315,120]
[357018428,1743580040735,-500.0,0.00049315,120]
[357018429,1743580040756,-500.0,0.00049315,120]
[357018430,1743580040779,-500.0,0.00049315,120]
[357018431,1743580040803,-500.0,0.00049315,120]
[357018432,1743580040829,-500.0,0.00049315,120]
[357018433,1743580040850,-500.0,0.00049315,120]
[357018434,1743580040873,-496.15421678,0.00049315,120]
[357018435,1743580040896,-501.07401744,0.00049315,120]
[357018436,1743580040922,-515.51587182,0.00049315,120]
[357018437,1743580040944,-500.0,0.00049315,120]
[357018438,1743580040965,-167.61,0.00049315,120]
[357018439,1743580040986,-500.0,0.00049315,120]
[357018440,1743580041009,-540.67096937,0.00049315,120]
[357018441,1743580041029,-518.33210585,0.00049315,120]
[357018442,1743580041051,-500.0,0.00049315,120]
[357018443,1743580041073,-511.14331689,0.00049315,120]
[357018444,1743580041096,-839.53,0.00049315,120]
[357018445,1743580041117,-500.0,0.00049315,120]
[357018446,1743580041139,-523.13268198,0.00049315,120]
[357018447,1743580041159,-500.0,0.00049315,120]
[357018448,1743580041180,-510.90440131,0.00049315,120]
[357018449,1743580041200,-500.0,0.00049315,120]
[357018450,1743580041221,-500.0,0.00049315,120]
[357018451,1743580041241,-529.29771469,0.00049315,120]
[357018452,1743580041262,-500.0,0.00049315,120]
[357018453,1743580041283,-500.0,0.00049315,120]
[357018454,1743580041305,-532.70781538,0.00049315,120]
[357018455,1743580041326,-588.39676595,0.00049315,120]
[357018456,1743580041348,-500.0,0.00049315,120]
[357018457,1743580041369,-521.58132593,0.00049315,120]
[357018458,1743580041390,-500.0,0.00049315,120]
[357018459,1743580041410,-500.0,0.00049315,120]
[357018460,1743580041431,-500.0,0.00049315,120]
[357018461,1743580041451,-345.33885274,0.00049315,120]
[357018462,1743580041473,-500.0,0.00049315,120]
[357018463,1743580041496,-500.0,0.00049315,120]
[357018464,1743580041517,-500.0,0.00049315,120]
[357018465,1743580041538,-531.08844659,0.00049315,120]
[357018466,1743580041560,-500.0,0.00049315,100]
[357018467,1743580041581,-500.0,0.00049315,120]
[357018468,1743580041603,-1664.679534,0.00049315,120]
[357018469,1743580041623,-500.0,0.00049315,120]
[357018470,1743580041644,-523.98996355,0.00049315,120]
[357018471,1743580041665,-500.0,0.00049315,120]
[357018472,1743580041687,-500.0,0.00049315,120]
[357018473,1743580041707,-178.829441,0.00049315,120]
[357018474,1743580041728,-500.0,0.00049315,120]
[357018475,1743580041748,-508.64349282,0.00049315,120]
[357018476,1743580041771,-533.44942908,0.00049315,120]
[357018477,1743580041793,-500.0,0.00049315,120]
[357018478,1743580041819,-500.0,0.00049315,120]
[357018479,1743580041842,-226.63761041,0.00049315,120]
[357018480,1743580041864,-500.0,0.00049315,120]
[357018481,1743580041884,-500.0,0.00049315,120]
[357018482,1743580041906,-500.0,0.00049315,120]
[357018483,1743580041928,-500.0,0.00049315,120]
[357018484,1743580041949,-500.0,0.00049315,120]
[357018485,1743580041970,-500.0,0.00049315,120]
[357018486,1743580041991,-500.0,0.00049315,120]
[357018487,1743580042012,-500.0,0.00049315,120]
[357018488,1743580042033,-500.0,0.00049315,120]
[357018489,1743580042054,-500.0,0.00049315,120]
[357018490,1743580042076,-500.0,0.00049315,120]
[357018491,1743580042098,-500.0,0.00049315,120]
[357018492,1743580042119,-500.0,0.00049315,120]
[357018493,1743580042140,-500.0,0.00049315,120]
[357018494,1743580042162,-500.0,0.00049315,120]
[357018495,1743580042184,-500.0,0.00049315,120]
[357018496,1743580042205,-635.37173292,0.00049315,120]
[357018497,1743580042226,-512.02942695,0.00049315,120]
[357018498,1743580042247,-500.0,0.00049315,120]
[357018499,1743580042268,-529.74489074,0.00049315,120]
[357018500,1743580042288,-510.32124701,0.00049315,120]
[357018501,1743580042310,-500.0,0.00049315,120]
[357018502,1743580042330,-515.80926446,0.00049315,120]
[357018503,1743580042350,-500.0,0.00049315,120]
[357018504,1743580042371,-500.0,0.00049315,120]
[357018505,1743580042392,-497.18966942,0.00049315,120]
[357018506,1743580042412,-513.19974678,0.00049315,120]
[357018507,1743580042434,-2835.59352,0.00049315,120]
[357018508,1743580042455,-618.03398209,0.00049315,120]
[357018509,1743580042477,-500.0,0.00049315,120]
[357018510,1743580042497,-358.36314185,0.00049315,120]
[357018511,1743580042518,-512.55523384,0.00049315,120]
[357018512,1743580042539,-525.35262658,0.00049315,120]
[357018513,1743580042560,-500.0,0.00049315,120]
[357018514,1743580042581,-519.25310798,0.00049315,120]
[357018515,1743580042601,-528.45127867,0.00049315,120]
[357018516,1743580042625,-472.94509242,0.00049315,120]
[357018517,1743580042645,-605.97340202,0.00049315,120]
[357018518,1743580042666,-500.0,0.00049315,120]
[357018519,1743580042687,-522.16661322,0.00049315,120]
[357018520,1743580042708,-500.0,0.00049315,120]
[357018521,1743580042728,-512.84605579,0.00049315,120]
[357018522,1743580042748,-506.45719326,0.00049315,120]
[357018523,1743580042768,-514.11108152,0.00049315,120]
[357018524,1743580042790,-500.0,0.00049315,120]
[357018525,1743580042811,-500.0,0.00049315,120]
[357018526,1743580042833,-1000.0,0.00049315,20]
[357018527,1743580042853,-1000.0,0.00049315,20]
[357018528,1743580042873,-533.62635806,0.00049373,10]
[357018529,1743580042896,-157.94695178,0.00049489,28]
[357018530,1743580042921,-455.6971,0.00049489,2]
[357018531,1743580042942,-3357.8639,0.00049489,120]
[357018532,1743580042963,-151.0,0.00049549,2]
[357018533,1743580042983,-2644.43,0.00049579,2]
[357018534,1743580043004,-500.0,0.00049588,120]
[357018535,1743580043121,-500.0,0.00049588,120]
[357018536,1743580043145,-450.05509817,0.00049588,120]
[357018537,1743580043166,-500.0,0.00049588,120]
[357018538,1743580043187,-550.63886622,0.00049588,120]
[357018539,1743580043207,-500.0,0.00049588,120]
[357018540,1743580043229,-500.0,0.00049588,120]
[357018541,1743580043251,-944.54,0.00049588,120]
[357018542,1743580043273,-537.4716261,0.00049588,120]
[357018543,1743580043295,-500.0,0.00049588,120]
[357018544,1743580043320,-500.0,0.00049588,120]
[357018545,1743580043343,-500.0,0.00049588,120]
[357018546,1743580043365,-343.22238701,0.00049588,120]
[357018547,1743580043388,-608.01726238,0.00049588,120]
[357018548,1743580043409,-500.0,0.00049588,120]
[357018549,1743580043432,-500.0,0.00049588,120]
[357018550,1743580043453,-521.93335543,0.00049588,120]
[357018551,1743580043475,-500.0,0.00049588,120]
[357018552,1743580043496,-500.0,0.00049589,2]
[357018553,1743580043518,-500.0,0.00049589,120]
[357018554,1743580043539,-509.49516989,0.00049589,120]
[357018555,1743580043561,-880.89377971,0.00049589,30]
[357018556,1743580043582,-500.0,0.00049589,10]
[357018557,1743580043603,-511.32271853,0.00049589,120]
[357018558,1743580043624,-508.93599954,0.00049589,120]
[357018559,1743580043645,-500.0,0.00049589,120]
[357018560,1743580043665,-504.80016759,0.00049589,120]
[357018561,1743580043686,-500.0,0.00049589,2]
[357018562,1743580043706,-871.39,0.00049589,120]
[357018563,1743580043727,-287.02454722,0.00049589,120]
[357018564,1743580043746,-318.91380748,0.00049589,120]
[357018565,1743580043767,-500.0,0.00049589,120]
[357018566,1743580043788,-500.0,0.00049589,120]
[357018567,1743580043809,-500.0,0.00049589,120]
[357018568,1743580043839,-532.83120935,0.00049589,120]
[357018569,1743580043860,-531.86811136,0.00049589,120]
[357018570,1743580043882,-462.55830164,0.00049589,120]
[357018571,1743580043904,-500.0,0.00049589,120]
[357018572,1743580043926,-533.51993698,0.00049589,120]
[357018573,1743580043946,-500.0,0.00049589,120]
[357018574,1743580043967,-511.90012542,0.00049589,120]
[357018575,1743580043987,-500.0,0.00049589,120]
[357018576,1743580044008,-500.0,0.00049589,120]
[357018577,1743580044030,-522.80801943,0.00049589,120]
[357018578,1743580044052,-500.0,0.00049589,120]
[357018579,1743580044075,-500.0,0.00049589,120]
[357018580,1743580044097,-500.0,0.00049589,120]
[357018581,1743580044118,-500.0,0.00049589,120]
[357018582,1743580044140,-519.32000097,0.00049589,120]
[357018583,1743580044161,-500.0,0.00049589,120]
[357018584,1743580044185,-500.0,0.00049589,120]
[357018585,1743580044208,-500.0,0.00049589,120]
[357018586,1743580044231,-500.0,0.00049589,120]
[357018587,1743580044256,-500.0,0.00049589,120]
[357018588,1743580044277,-807.16,0.00049589,120]
[357018589,1743580044298,-500.0,0.00049589,120]
[357018590,1743580044320,-533.85359613,0.00049589,120]
[357018591,1743580044342,-500.0,0.00049589,120]
[357018592,1743580044363,-500.0,0.00049589,120]
[357018593,1743580044384,-500.0,0.00049589,120]
[357018594,1743580044405,-500.0,0.00049589,120]
[357018595,1743580044425,-500.0,0.00049589,120]
[357018596,1743580044446,-1041.66,0.00049589,120]
[357018597,1743580044467,-500.0,0.00049589,120]
[357018598,1743580044489,-500.0,0.00049589,120]
[357018599,1743580044509,-505.68397307,0.00049589,120]
[357018600,1743580044531,-500.0,0.00049589,120]
[357018601,1743580044552,-372.12817297,0.00049589,120]
[357018602,1743580044575,-500.0,0.00049589,120]
[357018603,1743580044597,-500.0,0.00049589,120]
[357018604,1743580044618,-392.47355584,0.00049589,120]
[357018605,1743580044639,-500.0,0.00049589,120]
[357018606,1743580044661,-500.0,0.00049589,120]
[357018607,1743580044682,-500.0,0.00049589,120]
[357018608,1743580044703,-500.0,0.00049589,120]
[357018609,1743580044725,-1000.0,0.00049589,120]
[357018610,1743580044746,-500.0,0.00049589,120]
[357018611,1743580044769,-167.35992622,0.00049589,120]
[357018612,1743580044789,-500.0,0.00049589,120]
[357018613,1743580044812,-503.39425157,0.00049589,120]
[357018614,1743580044838,-500.0,0.00049589,120]
[357018615,1743580044861,-500.0,0.00049589,120]
[357018616,1743580044884,-500.0,0.00049589,120]
[357018617,1743580044909,-500.0,0.00049589,120]
[357018618,1743580044930,-500.0,0.00049589,120]
[357018619,1743580044950,-1000.41,0.00049589,30]
[357018620,1743580044972,-500.0,0.00049589,120]
[357018621,1743580044997,-500.0,0.00049589,120]
[357018622,1743580045018,-500.0,0.00049589,120]
[357018623,1743580045038,-500.0,0.00049589,120]
[357018624,1743580045059,-1077.97,0.00049589,120]
[357018625,1743580045081,-244.37687647,0.00049589,120]
[357018626,1743580045103,-522.24677196,0.00049589,120]
[357018627,1743580045124,-1799.71,0.00049589,120]
[357018628,1743580045146,-330.08335131,0.00049589,120]
[357018629,1743580045168,-500.0,0.00049589,2]
[357018630,1743580045189,-500.0,0.00049589,120]
[357018631,1743580045208,-500.0,0.00049589,120]
[357018632,1743580045229,-500.0,0.00049589,120]
[357018633,1743580045249,-500.0,0.00049589,120]
[357018634,1743580045270,-500.0,0.00049589,120]
[357018635,1743580045290,-500.0,0.00049589,120]
[357018636,1743580045311,-500.0,0.00049589,120]
[357018637,1743580045331,-500.0,0.00049589,120]
[357018638,1743580045352,-500.0,0.00049589,120]
[357018639,1743580045371,-502.23592759,0.00049589,120]
[357018640,1743580045392,-596.0,0.00049589,120]
[357018641,1743580045412,-500.0,0.00049589,120]
[357018642,1743580045432,-562.23591301,0.00049589,120]
[357018643,1743580045453,-500.0,0.00049589,120]
[357018644,1743580045475,-500.0,0.00049589,120]
[357018645,1743580045497,-500.0,0.00049589,120]
[357018646,1743580045518,-509.81782534,0.00049589,120]
[357018647,1743580045539,-175.50517661,0.00049589,120]
[357018648,1743580045562,-500.0,0.00049589,120]
[357018649,1743580045583,-500.0,0.00049589,120]
[357018650,1743580045606,-519.93558789,0.00049589,120]
[357018651,1743580045627,-520.26992325,0.00049589,120]
[357018652,1743580045648,-374.11819707,0.00049589,120]
[357018653,1743580045673,-610.9,0.00049589,120]
[357018654,1743580045696,-529.16956054,0.00049589,120]
[357018655,1743580045718,-410.31938182,0.00049589,120]
[357018656,1743580045839,-174.04303184,0.00049589,120]
[357018657,1743580045864,-500.0,0.00049589,120]
[357018658,1743580045887,-500.0,0.00049589,120]
[357018659,1743580045910,-500.0,0.00049589,120]
[357018660,1743580045932,-500.0,0.00049589,120]
[357018661,1743580045954,-500.0,0.00049589,120]
[357018662,1743580045975,-500.0,0.00049589,120]
[357018663,1743580045998,-500.0,0.00049589,120]
[357018664,1743580046018,-285.78367371,0.00049589,120]
[357018665,1743580046039,-500.0,0.00049589,120]
[357018666,1743580046063,-500.0,0.00049589,120]
[357018667,1743580046085,-500.0,0.00049589,120]
[357018668,1743580046106,-500.0,0.00049589,120]
[357018669,1743580046127,-500.0,0.00049589,120]
[357018670,1743580046149,-839.53,0.00049589,120]
[357018671,1743580046171,-500.0,0.00049589,120]
[357018672,1743580046192,-643.99559096,0.00049589,120]
[357018673,1743580046212,-517.85185099,0.00049589,120]
[357018674,1743580046234,-489.69584107,0.00049589,120]
[357018675,1743580046256,-500.0,0.00049589,120]
[357018676,1743580046277,-500.0,0.00049589,120]
[357018677,1743580046298,-500.0,0.00049589,120]
[357018678,1743580046319,-500.0,0.00049589,120]
[357018679,1743580046341,-500.0,0.00049589,120]
[357018680,1743580046362,-500.0,0.00049589,120]
[357018681,1743580046383,-500.0,0.00049589,120]
[357018682,1743580046407,-500.0,0.00049589,120]
[357018683,1743580046429,-500.0,0.00049589,120]
[357018684,1743580046451,-500.0,0.00049589,100]
[357018685,1743580046474,-359.1061262,0.00049589,120]
[357018686,1743580046496,-547.76363648,0.00049589,120]
[357018687,1743580046519,-500.0,0.00049589,120]
[357018688,1743580046542,-500.0,0.00049589,120]
[357018689,1743580046566,-500.0,0.00049589,120]
[357018690,1743580046588,-526.12697398,0.00049589,120]
[357018691,1743580046613,-532.35112414,0.00049589,120]
[357018692,1743580046635,-538.22097524,0.00049589,120]
[357018693,1743580046658,-516.10273469,0.00049589,120]
[357018694,1743580046680,-500.0,0.00049589,120]
[357018695,1743580046703,-521.42069837,0.00049589,120]
[357018696,1743580046725,-500.0,0.00049589,120]
[357018697,1743580046747,-519.0,0.00049671,7]
[357018698,1743580046769,-152.3,0.00049753,2]
[357018699,1743580046792,-28797.2656945,0.00049853,4]
[357018700,1743580046815,-256.89759245,0.00049862,120]
[357018701,1743580046840,-500.0,0.00049862,120]
[357018702,1743580046864,-153.79919058,0.00049862,120]
[357018703,1743580046887,-500.0,0.00049862,120]
[357018704,1743580046911,-944.54,0.00049862,120]
[357018705,1743580046934,-500.0,0.00049862,120]
[357018706,1743580046957,-500.0,0.00049862,120]
[357018707,1743580046979,-500.0,0.00049862,120]
[357018708,1743580047003,-577.93901767,0.00049862,120]
[357018709,1743580047028,-500.0,0.00049862,120]
[357018710,1743580047050,-296.29683125,0.00049862,120]
[357018711,1743580047072,-500.0,0.00049863,2]
[357018712,1743580047095,-500.0,0.00049863,120]
[357018713,1743580047115,-500.0,0.00049863,10]
[357018714,1743580047138,-622.06687281,0.00049863,120]
[357018715,1743580047164,-500.0,0.00049863,2]
[357018716,1743580047199,-871.39,0.00049863,120]
[357018717,1743580047226,-500.0,0.00049863,120]
[357018718,1743580047256,-532.79111091,0.00049863,120]
[357018719,1743580047285,-500.0,0.00049863,120]
[357018720,1743580047317,-270.50972923,0.00049863,120]
[357018721,1743580047347,-527.89798406,0.00049863,120]
[357018722,1743580047373,-500.0,0.00049863,120]
[357018723,1743580047403,-500.0,0.00049863,120]
[357018724,1743580047432,-500.0,0.00049863,120]
[357018725,1743580047461,-500.0,0.00049863,120]
[357018726,1743580047489,-506.80088111,0.00049863,120]
[357018727,1743580047519,-500.0,0.00049863,120]
[357018728,1743580047546,-500.0,0.00049863,120]
[357018729,1743580047576,-500.0,0.00049863,120]
[357018730,1743580047603,-500.0,0.00049863,120]
[357018731,1743580047633,-500.0,0.00049863,120]
[357018732,1743580047659,-807.16,0.00049863,120]
[357018733,1743580047689,-500.0,0.00049863,120]
[357018734,1743580047716,-500.0,0.00049863,120]
[357018735,1743580047742,-500.0,0.00049863,120]
[357018736,1743580047766,-500.0,0.00049863,120]
[357018737,1743580047792,-500.0,0.00049863,120]